[Event "Titled Tuesday Blitz December 06 Late 2022"]
[White "Pakleza, Zbigniew"]
[Black "Martin Carmona, Gaston Manuel"]
[WhiteFideId "1119290"]
[BlackFideId "22284567"]
[WhiteElo "2410"]
[BlackElo "2235"]
[Result "0-1"]
[Round "01"]
[TimeControl "180+1"]
[Date "2022.12.07"]
[WhiteClock "0:00:10"]
[BlackClock "0:00:09"]

1. d4 {[%clk 0:02:59]}  Nf6 {[%clk 0:02:58]} 2. Nf3 {[%clk 0:02:59]}  c5 {[%clk 0:02:55]} 3. c3 {[%clk 0:02:59]}  d5 {[%clk 0:02:53]} 4. Bf4 {[%clk 0:02:59]}  Nc6 {[%clk 0:02:52]} 5. Nbd2 {[%clk 0:02:56]}  e6 {[%clk 0:02:52]} 6. e3 {[%clk 0:02:56]}  Bd6 {[%clk 0:02:51]} 7. Bg3 {[%clk 0:02:56]}  O-O {[%clk 0:02:51]} 8. Bd3 {[%clk 0:02:56]}  b6 {[%clk 0:02:50]} 9. Ne5 {[%clk 0:02:54]}  Bb7 {[%clk 0:02:47]} 10. f4 {[%clk 0:02:54]}  Ne7 {[%clk 0:02:46]} 11. Qb1 {[%clk 0:02:54]}  Qc8 {[%clk 0:02:26]} 12. Bh4 {[%clk 0:02:28]}  Nf5 {[%clk 0:02:25]} 13. Bxf5 {[%clk 0:02:17]}  exf5 {[%clk 0:02:25]} 14. Bxf6 {[%clk 0:02:17]}  gxf6 {[%clk 0:02:26]} 15. Nef3 {[%clk 0:02:16]}  Qe6 {[%clk 0:02:26]} 16. Kf2 {[%clk 0:02:13]}  Rae8 {[%clk 0:02:21]} 17. Re1 {[%clk 0:02:10]}  Qd7 {[%clk 0:01:55]} 18. Nh4 {[%clk 0:02:02]}  Re4 {[%clk 0:01:55]} 19. Nxe4 {[%clk 0:01:53]}  fxe4 {[%clk 0:01:56]} 20. Qd1 {[%clk 0:01:49]}  Kh8 {[%clk 0:01:56]} 21. Qh5 {[%clk 0:01:45]}  Rg8 {[%clk 0:01:50]} 22. h3 {[%clk 0:01:25]}  Qc7 {[%clk 0:01:37]} 23. Kg1 {[%clk 0:01:08]}  c4 {[%clk 0:01:26]} 24. Nf5 {[%clk 0:01:03]}  Bf8 {[%clk 0:01:26]} 25. g4 {[%clk 0:01:00]}  Qd7 {[%clk 0:01:24]} 26. a4 {[%clk 0:00:52]}  Rg6 {[%clk 0:01:24]} 27. Kf2 {[%clk 0:00:49]}  Bc8 {[%clk 0:01:20]} 28. Rg1 {[%clk 0:00:44]}  Qe6 {[%clk 0:01:19]} 29. Ng3 {[%clk 0:00:39]}  Rh6 {[%clk 0:01:18]} 30. Qf5 {[%clk 0:00:34]}  Qc6 {[%clk 0:01:11]} 31. Qh5 {[%clk 0:00:22]}  Rxh5 {[%clk 0:01:10]} 32. Nxh5 {[%clk 0:00:23]}  a5 {[%clk 0:01:05]} 33. Rg2 {[%clk 0:00:21]}  Bd7 {[%clk 0:01:03]} 34. Kg1 {[%clk 0:00:17]}  Be7 {[%clk 0:01:03]} 35. Kh1 {[%clk 0:00:16]}  b5 {[%clk 0:01:02]} 36. axb5 {[%clk 0:00:15]}  Qxb5 {[%clk 0:01:03]} 37. f5 {[%clk 0:00:13]}  a4 {[%clk 0:01:01]} 38. Nf4 {[%clk 0:00:12]}  Bc6 {[%clk 0:01:00]} 39. h4 {[%clk 0:00:12]}  Bd6 {[%clk 0:01:01]} 40. Nh5 {[%clk 0:00:12]}  Be7 {[%clk 0:01:00]} 41. g5 {[%clk 0:00:12]}  fxg5 {[%clk 0:00:58]} 42. f6 {[%clk 0:00:13]}  Bf8 {[%clk 0:00:49]} 43. Rxg5 {[%clk 0:00:13]}  Bh6 {[%clk 0:00:49]} 44. Rg3 {[%clk 0:00:11]}  Qxb2 {[%clk 0:00:37]} 45. Rag1 {[%clk 0:00:11]}  Qb8 {[%clk 0:00:37]} 46. Ng7 {[%clk 0:00:08]}  Bd7 {[%clk 0:00:30]} 47. Nh5 {[%clk 0:00:05]}  Bf5 {[%clk 0:00:30]} 48. Nf4 {[%clk 0:00:04]}  Bxf4 {[%clk 0:00:29]} 49. exf4 {[%clk 0:00:04]}  Bg6 {[%clk 0:00:28]} 50. f5 {[%clk 0:00:03]}  Bxf5 {[%clk 0:00:27]} 51. Rg5 {[%clk 0:00:04]}  Bg6 {[%clk 0:00:26]} 52. h5 {[%clk 0:00:04]}  Kg8 {[%clk 0:00:19]} 53. hxg6 {[%clk 0:00:04]}  fxg6 {[%clk 0:00:20]} 54. Rxd5 {[%clk 0:00:04]}  Kf7 {[%clk 0:00:19]} 55. Rd7+ {[%clk 0:00:03]}  Kxf6 {[%clk 0:00:19]} 56. Rxh7 {[%clk 0:00:03]}  Qf4 {[%clk 0:00:17]} 57. d5 {[%clk 0:00:03]}  Qf3+ {[%clk 0:00:16]} 58. Kh2 {[%clk 0:00:03]}  Qf2+ {[%clk 0:00:16]} 59. Rg2 {[%clk 0:00:03]}  Qf4+ {[%clk 0:00:16]} 60. Kh3 {[%clk 0:00:04]}  e3 {[%clk 0:00:16]} 61. d6 {[%clk 0:00:03]}  Qxd6 {[%clk 0:00:16]} 62. Rh8 {[%clk 0:00:02]}  Qe6+ {[%clk 0:00:16]} 63. Kh2 {[%clk 0:00:02]}  Qe5+ {[%clk 0:00:16]} 64. Kh1 {[%clk 0:00:02]}  Kg7 {[%clk 0:00:17]} 65. Rhh2 {[%clk 0:00:01]}  a3 {[%clk 0:00:14]} 66. Re2 {[%clk 0:00:01]}  Qxc3 {[%clk 0:00:12]} 67. Rhg2 {[%clk 0:00:02]}  Qb3 {[%clk 0:00:10]} 68. Kh2 {[%clk 0:00:02]}  c3 {[%clk 0:00:09]} 69. Rc2 {[%clk 0:00:01]}  Kf6 {[%clk 0:00:06]} 70. Rce2 {[%clk 0:00:01]}  Ke5 {[%clk 0:00:07]} 71. Rxe3+ {[%clk 0:00:02]}  Kd4 {[%clk 0:00:07]} 72. Ree2 {[%clk 0:00:01]}  Kd3 {[%clk 0:00:08]} 73. Ref2 {[%clk 0:00:02]}  c2 {[%clk 0:00:07]} 74. Rg3+ {[%clk 0:00:03]}  Kc4 {[%clk 0:00:08]} 75. Rf4+ {[%clk 0:00:03]}  Kc5 {[%clk 0:00:07]} 76. Rxb3 {[%clk 0:00:03]}  c1=Q {[%clk 0:00:07]} 77. Rbf3 {[%clk 0:00:03]}  a2 {[%clk 0:00:06]} 78. Rf8 {[%clk 0:00:03]}  a1=Q {[%clk 0:00:06]} 79. Rc8+ {[%clk 0:00:04]}  Kd6 {[%clk 0:00:06]} 80. Rd3+ {[%clk 0:00:04]}  Ke7 {[%clk 0:00:05]} 81. Rxc1 {[%clk 0:00:04]}  Qxc1 {[%clk 0:00:05]} 82. Rg3 {[%clk 0:00:05]}  Qh6+ {[%clk 0:00:05]} 83. Kg2 {[%clk 0:00:06]}  Kf6 {[%clk 0:00:04]} 84. Rf3+ {[%clk 0:00:06]}  Kg7 {[%clk 0:00:04]} 85. Rh3 {[%clk 0:00:06]}  Qd2+ {[%clk 0:00:04]} 86. Kh1 {[%clk 0:00:06]}  Qe1+ {[%clk 0:00:04]} 87. Kg2 {[%clk 0:00:06]}  Kf6 {[%clk 0:00:05]} 88. Rf3+ {[%clk 0:00:06]}  Kg5 {[%clk 0:00:04]} 89. Rg3+ {[%clk 0:00:06]}  Kf5 {[%clk 0:00:04]} 90. Kh2 {[%clk 0:00:04]}  Qf2+ {[%clk 0:00:04]} 91. Kh1 {[%clk 0:00:05]}  Qf1+ {[%clk 0:00:03]} 92. Kh2 {[%clk 0:00:05]}  Qf2+ {[%clk 0:00:04]} 93. Kh1 {[%clk 0:00:05]}  g5 {[%clk 0:00:04]} 94. Rg2 {[%clk 0:00:05]}  Qxg2+ {[%clk 0:00:05]} 95. Kxg2 {[%clk 0:00:05]}  Kg4 {[%clk 0:00:05]} 96. Kh2 {[%clk 0:00:05]}  Kf3 {[%clk 0:00:06]} 97. Kg1 {[%clk 0:00:05]}  g4 {[%clk 0:00:06]} 98. Kf1 {[%clk 0:00:06]}  g3 {[%clk 0:00:07]} 99. Kg1 {[%clk 0:00:06]}  g2 {[%clk 0:00:07]} 100. Kh2 {[%clk 0:00:07]}  Kf2 {[%clk 0:00:08]} 101. Kh3 {[%clk 0:00:08]}  g1=Q {[%clk 0:00:09]} 102. Kh4 {[%clk 0:00:09]}  Qg6 {[%clk 0:00:09]} 103. Kh3 {[%clk 0:00:10]}  Qg3# {[%clk 0:00:09]} 0-1


[Site "https://www.chess.com"]

[Event "Titled Tuesday Blitz December 06 Late 2022"]
[White "Papp, Levente"]
[Black "Weisz, Bryan"]
[WhiteFideId "751243"]
[BlackFideId "30934133"]
[WhiteElo "2380"]
[BlackElo "2285"]
[Result "1-0"]
[Round "01"]
[TimeControl "180+1"]
[Date "2022.12.07"]
[WhiteClock "0:00:37"]
[BlackClock "0:00:10"]

1. d4 {[%clk 0:03:00]}  d5 {[%clk 0:03:00]} 2. Bf4 {[%clk 0:02:58]}  Nf6 {[%clk 0:02:58]} 3. Nc3 {[%clk 0:02:58]}  a6 {[%clk 0:02:53]} 4. Nf3 {[%clk 0:02:54]}  e6 {[%clk 0:02:47]} 5. e3 {[%clk 0:02:52]}  c5 {[%clk 0:02:43]} 6. Be2 {[%clk 0:02:39]}  Bd6 {[%clk 0:02:40]} 7. Ne5 {[%clk 0:02:37]}  Qc7 {[%clk 0:02:27]} 8. g4 {[%clk 0:02:28]}  Nfd7 {[%clk 0:02:05]} 9. Nd3 {[%clk 0:02:18]}  Bxf4 {[%clk 0:01:57]} 10. Nxf4 {[%clk 0:02:17]}  cxd4 {[%clk 0:01:57]} 11. Qxd4 {[%clk 0:02:14]}  O-O {[%clk 0:01:20]} 12. Qd2 {[%clk 0:02:05]}  d4 {[%clk 0:01:03]} 13. exd4 {[%clk 0:02:03]}  Nc6 {[%clk 0:01:00]} 14. d5 {[%clk 0:01:47]}  Nce5 {[%clk 0:00:55]} 15. O-O-O {[%clk 0:01:38]}  b5 {[%clk 0:00:55]} 16. dxe6 {[%clk 0:01:37]}  Nb6 {[%clk 0:00:51]} 17. Nfd5 {[%clk 0:01:26]}  Qb7 {[%clk 0:00:44]} 18. Nxb6 {[%clk 0:01:00]}  Qxb6 {[%clk 0:00:45]} 19. Qd5 {[%clk 0:00:59]}  Nc6 {[%clk 0:00:38]} 20. exf7+ {[%clk 0:00:53]}  Rxf7 {[%clk 0:00:29]} 21. Ne4 {[%clk 0:00:52]}  Kf8 {[%clk 0:00:12]} 22. Nd6 {[%clk 0:00:47]}  Re7 {[%clk 0:00:09]} 23. Nxc8 {[%clk 0:00:37]}  Rxc8 {[%clk 0:00:10]} 24. Qf5+ {[%clk 0:00:37]} 1-0


[Site "https://www.chess.com"]

[Event "Titled Tuesday Blitz December 06 Late 2022"]
[White "Perez Leiva, Jerzy Jesus"]
[Black "Grapsa, Georgia"]
[WhiteFideId "3524337"]
[BlackFideId "4206436"]
[WhiteElo "2289"]
[BlackElo "1825"]
[Result "1-0"]
[Round "01"]
[TimeControl "180+1"]
[Date "2022.12.07"]
[WhiteClock "0:00:28"]
[BlackClock "0:00:08"]

1. d4 {[%clk 0:02:56]}  e6 {[%clk 0:02:59]} 2. Nf3 {[%clk 0:02:53]}  b6 {[%clk 0:02:58]} 3. Nc3 {[%clk 0:02:52]}  Bb7 {[%clk 0:02:58]} 4. e4 {[%clk 0:02:52]}  Nf6 {[%clk 0:02:54]} 5. Bg5 {[%clk 0:02:51]}  Be7 {[%clk 0:02:54]} 6. e5 {[%clk 0:02:44]}  Nd5 {[%clk 0:02:53]} 7. h4 {[%clk 0:02:44]}  Nxc3 {[%clk 0:02:52]} 8. bxc3 {[%clk 0:02:44]}  h6 {[%clk 0:02:52]} 9. Bf4 {[%clk 0:02:40]}  d6 {[%clk 0:02:29]} 10. Bb5+ {[%clk 0:02:38]}  Nd7 {[%clk 0:02:24]} 11. exd6 {[%clk 0:02:29]}  cxd6 {[%clk 0:02:22]} 12. Qe2 {[%clk 0:02:20]}  Rc8 {[%clk 0:02:14]} 13. Bd2 {[%clk 0:02:12]}  O-O {[%clk 0:01:55]} 14. Kf1 {[%clk 0:01:49]}  Nf6 {[%clk 0:01:44]} 15. Bd3 {[%clk 0:01:48]}  Qd7 {[%clk 0:00:57]} 16. Rg1 {[%clk 0:01:20]}  Ng4 {[%clk 0:00:53]} 17. Rh1 {[%clk 0:01:15]}  Rfe8 {[%clk 0:00:36]} 18. Ng5 {[%clk 0:01:11]}  Nf6 {[%clk 0:00:32]} 19. Re1 {[%clk 0:01:04]}  d5 {[%clk 0:00:27]} 20. Rh3 {[%clk 0:00:57]}  Rf8 {[%clk 0:00:14]} 21. Nf3 {[%clk 0:00:54]}  Bd6 {[%clk 0:00:13]} 22. Bxh6 {[%clk 0:00:41]}  gxh6 {[%clk 0:00:12]} 23. Ne5 {[%clk 0:00:39]}  Bxe5 {[%clk 0:00:11]} 24. Qxe5 {[%clk 0:00:37]}  Qe7 {[%clk 0:00:08]} 25. Qf4 {[%clk 0:00:28]} 1-0


[Site "https://www.chess.com"]

[Event "Titled Tuesday Blitz December 06 Late 2022"]
[White "Potapova, Margarita"]
[Black "Ibarra Jerez, Jose Carlos"]
[WhiteFideId "14126869"]
[BlackFideId "2226332"]
[WhiteElo "2273"]
[BlackElo "2638"]
[Result "1/2-1/2"]
[Round "01"]
[TimeControl "180+1"]
[Date "2022.12.07"]
[WhiteClock "0:00:35"]
[BlackClock "0:00:04"]

1. d4 {[%clk 0:03:00]}  Nf6 {[%clk 0:02:58]} 2. Bf4 {[%clk 0:03:01]}  g6 {[%clk 0:02:57]} 3. e3 {[%clk 0:03:01]}  Bg7 {[%clk 0:02:57]} 4. Nf3 {[%clk 0:03:02]}  O-O {[%clk 0:02:58]} 5. h3 {[%clk 0:03:03]}  d6 {[%clk 0:02:59]} 6. Bh2 {[%clk 0:03:03]}  c5 {[%clk 0:02:59]} 7. c3 {[%clk 0:03:04]}  Be6 {[%clk 0:02:59]} 8. Be2 {[%clk 0:03:01]}  Qb6 {[%clk 0:02:58]} 9. Na3 {[%clk 0:03:02]}  a6 {[%clk 0:02:47]} 10. Qc2 {[%clk 0:02:52]}  Nc6 {[%clk 0:02:45]} 11. Nc4 {[%clk 0:02:52]}  Bxc4 {[%clk 0:02:40]} 12. Bxc4 {[%clk 0:02:52]}  Rac8 {[%clk 0:02:40]} 13. Qb3 {[%clk 0:02:52]}  Qa7 {[%clk 0:02:38]} 14. Be2 {[%clk 0:02:39]}  b5 {[%clk 0:02:26]} 15. O-O {[%clk 0:02:36]}  Na5 {[%clk 0:02:18]} 16. Qd1 {[%clk 0:02:33]}  Nc4 {[%clk 0:02:14]} 17. Qb3 {[%clk 0:02:27]}  Ne4 {[%clk 0:02:07]} 18. Bxc4 {[%clk 0:02:21]}  bxc4 {[%clk 0:02:07]} 19. Qxc4 {[%clk 0:02:22]}  cxd4 {[%clk 0:02:04]} 20. Qd5 {[%clk 0:01:43]}  Nf6 {[%clk 0:01:40]} 21. Qxd4 {[%clk 0:01:43]}  Qb7 {[%clk 0:01:41]} 22. Qd2 {[%clk 0:01:42]}  a5 {[%clk 0:01:37]} 23. Nd4 {[%clk 0:01:29]}  a4 {[%clk 0:01:21]} 24. Rab1 {[%clk 0:01:28]}  Qd5 {[%clk 0:01:19]} 25. a3 {[%clk 0:01:21]}  Rb8 {[%clk 0:01:13]} 26. Qe2 {[%clk 0:01:18]}  Rb6 {[%clk 0:01:09]} 27. Nc2 {[%clk 0:01:19]}  Rc8 {[%clk 0:01:05]} 28. Nb4 {[%clk 0:01:19]}  Qe6 {[%clk 0:01:04]} 29. Qc2 {[%clk 0:01:17]}  Qd7 {[%clk 0:01:04]} 30. Rfd1 {[%clk 0:01:16]}  Qa7 {[%clk 0:01:02]} 31. Rd2 {[%clk 0:01:11]}  Qa8 {[%clk 0:01:01]} 32. Rbd1 {[%clk 0:00:56]}  Ne4 {[%clk 0:01:00]} 33. Nd5 {[%clk 0:00:56]}  Nxd2 {[%clk 0:00:11]} 34. Nxb6 {[%clk 0:00:55]}  Qb7 {[%clk 0:00:12]} 35. Nxc8 {[%clk 0:00:54]}  Nb3 {[%clk 0:00:13]} 36. Nxe7+ {[%clk 0:00:49]}  Qxe7 {[%clk 0:00:12]} 37. Bxd6 {[%clk 0:00:50]}  Qe6 {[%clk 0:00:12]} 38. Bg3 {[%clk 0:00:47]}  h5 {[%clk 0:00:12]} 39. c4 {[%clk 0:00:46]}  Bf8 {[%clk 0:00:12]} 40. Rd8 {[%clk 0:00:39]}  Qf6 {[%clk 0:00:10]} 41. Bd6 {[%clk 0:00:37]}  Qxd8 {[%clk 0:00:09]} 42. Bxf8 {[%clk 0:00:36]}  Qxf8 {[%clk 0:00:10]} 43. Qc3 {[%clk 0:00:33]}  Qd6 {[%clk 0:00:10]} 44. Qb4 {[%clk 0:00:31]}  Qxb4 {[%clk 0:00:06]} 45. axb4 {[%clk 0:00:32]}  Kf8 {[%clk 0:00:07]} 46. Kf1 {[%clk 0:00:29]}  Nd2+ {[%clk 0:00:07]} 47. Ke2 {[%clk 0:00:30]}  Nxc4 {[%clk 0:00:07]} 48. Kd3 {[%clk 0:00:31]}  Nxb2+ {[%clk 0:00:07]} 49. Kc3 {[%clk 0:00:31]}  Nd1+ {[%clk 0:00:07]} 50. Kc4 {[%clk 0:00:31]}  Ke7 {[%clk 0:00:07]} 51. b5 {[%clk 0:00:32]}  Kd6 {[%clk 0:00:08]} 52. Kb4 {[%clk 0:00:33]}  Nxf2 {[%clk 0:00:06]} 53. Kxa4 {[%clk 0:00:33]}  Nd1 {[%clk 0:00:05]} 54. e4 {[%clk 0:00:33]}  Nc3+ {[%clk 0:00:05]} 55. Kb4 {[%clk 0:00:33]}  Nxe4 {[%clk 0:00:06]} 56. Kc4 {[%clk 0:00:34]}  Nc5 {[%clk 0:00:06]} 57. Kd4 {[%clk 0:00:35]}  Nd7 {[%clk 0:00:06]} 58. g4 {[%clk 0:00:34]}  hxg4 {[%clk 0:00:06]} 59. hxg4 {[%clk 0:00:35]}  g5 {[%clk 0:00:07]} 60. Ke4 {[%clk 0:00:36]}  Ke6 {[%clk 0:00:07]} 61. Kd4 {[%clk 0:00:36]}  f6 {[%clk 0:00:06]} 62. Ke4 {[%clk 0:00:35]}  Nc5+ {[%clk 0:00:06]} 63. Kd4 {[%clk 0:00:35]}  Nb7 {[%clk 0:00:07]} 64. b6 {[%clk 0:00:36]}  Kd6 {[%clk 0:00:06]} 65. Ke4 {[%clk 0:00:36]}  Ke6 {[%clk 0:00:05]} 66. Kd4 {[%clk 0:00:37]}  f5 {[%clk 0:00:05]} 67. gxf5+ {[%clk 0:00:37]}  Kxf5 {[%clk 0:00:06]} 68. Kd5 {[%clk 0:00:35]}  g4 {[%clk 0:00:06]} 69. Kc6 {[%clk 0:00:36]}  Nd8+ {[%clk 0:00:06]} 70. Kc7 {[%clk 0:00:35]}  Ne6+ {[%clk 0:00:06]} 71. Kd6 {[%clk 0:00:34]}  Nd8 {[%clk 0:00:05]} 72. Kc7 {[%clk 0:00:34]}  Ne6+ {[%clk 0:00:04]} 73. Kd6 {[%clk 0:00:35]}  Nd8 {[%clk 0:00:04]} 74. Kc7 {[%clk 0:00:35]} 1/2-1/2


[Site "https://www.chess.com"]

[Event "Titled Tuesday Blitz December 06 Late 2022"]
[White "Pultinevicius, Paulius"]
[Black "Baches Garcia, Guillermo"]
[WhiteFideId "12809390"]
[BlackFideId "2209764"]
[WhiteElo "2486"]
[BlackElo "2478"]
[Result "1-0"]
[Round "01"]
[TimeControl "180+1"]
[Date "2022.12.06"]
[WhiteClock "0:01:57"]
[BlackClock "0:00:53"]

1. b3 {[%clk 0:02:54]}  c5 {[%clk 0:02:56]} 2. Bb2 {[%clk 0:02:54]}  Nc6 {[%clk 0:02:57]} 3. e3 {[%clk 0:02:54]}  a6 {[%clk 0:02:52]} 4. c4 {[%clk 0:02:52]}  e6 {[%clk 0:02:49]} 5. Nf3 {[%clk 0:02:50]}  Nf6 {[%clk 0:02:49]} 6. d4 {[%clk 0:02:45]}  cxd4 {[%clk 0:02:47]} 7. Nxd4 {[%clk 0:02:46]}  Bb4+ {[%clk 0:02:33]} 8. Bc3 {[%clk 0:02:46]}  Qa5 {[%clk 0:02:23]} 9. Qd2 {[%clk 0:02:04]}  Ne4 {[%clk 0:02:13]} 10. Nxc6 {[%clk 0:02:02]}  bxc6 {[%clk 0:00:53]} 11. Bxb4 {[%clk 0:01:59]}  Qb6 {[%clk 0:00:53]} 12. Ba5 {[%clk 0:01:57]} 1-0


[Site "https://www.chess.com"]

[Event "Titled Tuesday Blitz December 06 Late 2022"]
[White "Radovanovic, Dusan"]
[Black "Mladek, Richard"]
[WhiteFideId "926868"]
[BlackFideId "386588"]
[WhiteElo "2337"]
[BlackElo "2271"]
[Result "0-1"]
[Round "01"]
[TimeControl "180+1"]
[Date "2022.12.07"]
[WhiteClock "0:01:30"]
[BlackClock "0:01:12"]

1. e4 {[%clk 0:02:47]}  e5 {[%clk 0:02:59]} 2. Nf3 {[%clk 0:02:45]}  Nc6 {[%clk 0:02:59]} 3. Nc3 {[%clk 0:02:45]}  Nf6 {[%clk 0:02:59]} 4. Bb5 {[%clk 0:02:45]}  Bd6 {[%clk 0:02:55]} 5. a3 {[%clk 0:02:44]}  O-O {[%clk 0:02:49]} 6. d3 {[%clk 0:02:45]}  h6 {[%clk 0:02:45]} 7. g4 {[%clk 0:02:44]}  Nh7 {[%clk 0:02:03]} 8. h4 {[%clk 0:02:37]}  Nd4 {[%clk 0:02:04]} 9. Bc4 {[%clk 0:02:30]}  c6 {[%clk 0:01:50]} 10. g5 {[%clk 0:02:30]}  Kh8 {[%clk 0:01:27]} 11. gxh6 {[%clk 0:02:14]}  g6 {[%clk 0:01:28]} 12. Nxd4 {[%clk 0:02:08]}  exd4 {[%clk 0:01:27]} 13. Ne2 {[%clk 0:02:09]}  Bc7 {[%clk 0:01:25]} 14. Nf4 {[%clk 0:01:40]}  d5 {[%clk 0:01:19]} 15. Bb3 {[%clk 0:01:39]}  Qf6 {[%clk 0:01:14]} 16. Qe2 {[%clk 0:01:30]}  Bxf4 {[%clk 0:01:12]} 0-1


[Site "https://www.chess.com"]

[Event "Titled Tuesday Blitz December 06 Late 2022"]
[White "Rakhmatullaev, Almas"]
[Black "Karas, Marek"]
[WhiteFideId "14205793"]
[BlackFideId "14928558"]
[WhiteElo "2221"]
[BlackElo "2247"]
[Result "1-0"]
[Round "01"]
[TimeControl "180+1"]
[Date "2022.12.07"]
[WhiteClock "0:00:14"]
[BlackClock "0:00:01"]

1. e4 {[%clk 0:02:54]}  e6 {[%clk 0:02:59]} 2. d4 {[%clk 0:02:54]}  d5 {[%clk 0:02:59]} 3. Nc3 {[%clk 0:02:54]}  Nf6 {[%clk 0:02:59]} 4. Bg5 {[%clk 0:02:51]}  Be7 {[%clk 0:02:59]} 5. e5 {[%clk 0:02:51]}  Nfd7 {[%clk 0:03:00]} 6. h4 {[%clk 0:02:52]}  h6 {[%clk 0:03:00]} 7. Qh5 {[%clk 0:02:49]}  a6 {[%clk 0:02:50]} 8. Bd3 {[%clk 0:02:48]}  c5 {[%clk 0:02:47]} 9. Nxd5 {[%clk 0:02:42]}  Bxg5 {[%clk 0:02:35]} 10. hxg5 {[%clk 0:02:41]}  exd5 {[%clk 0:02:30]} 11. e6 {[%clk 0:02:41]}  Qe7 {[%clk 0:02:25]} 12. Kf1 {[%clk 0:02:39]}  Nf8 {[%clk 0:02:12]} 13. exf7+ {[%clk 0:02:32]}  Qxf7 {[%clk 0:02:07]} 14. Re1+ {[%clk 0:02:31]}  Be6 {[%clk 0:02:04]} 15. Rxe6+ {[%clk 0:02:29]}  Nxe6 {[%clk 0:02:03]} 16. Bg6 {[%clk 0:02:29]}  Nxg5 {[%clk 0:01:50]} 17. Bxf7+ {[%clk 0:02:24]}  Nxf7 {[%clk 0:01:51]} 18. Qxd5 {[%clk 0:02:23]}  Nc6 {[%clk 0:01:45]} 19. Nf3 {[%clk 0:02:23]}  cxd4 {[%clk 0:01:39]} 20. Qe6+ {[%clk 0:02:23]}  Kf8 {[%clk 0:01:37]} 21. Rh5 {[%clk 0:02:21]}  Re8 {[%clk 0:01:34]} 22. Qb3 {[%clk 0:02:21]}  Re7 {[%clk 0:01:31]} 23. Rf5 {[%clk 0:02:19]}  g6 {[%clk 0:01:28]} 24. Rd5 {[%clk 0:02:11]}  Kg7 {[%clk 0:01:19]} 25. Nxd4 {[%clk 0:02:11]}  Rhe8 {[%clk 0:01:16]} 26. g3 {[%clk 0:02:11]}  Nxd4 {[%clk 0:01:13]} 27. Rxd4 {[%clk 0:02:12]}  Ne5 {[%clk 0:01:11]} 28. Qc3 {[%clk 0:02:11]}  Kh7 {[%clk 0:01:10]} 29. Re4 {[%clk 0:02:10]}  Nc6 {[%clk 0:01:05]} 30. Rxe7+ {[%clk 0:02:10]}  Rxe7 {[%clk 0:01:06]} 31. a4 {[%clk 0:02:09]}  Rg7 {[%clk 0:01:02]} 32. b4 {[%clk 0:02:09]}  Ne7 {[%clk 0:01:01]} 33. b5 {[%clk 0:02:09]}  axb5 {[%clk 0:01:00]} 34. axb5 {[%clk 0:02:10]}  Nf5 {[%clk 0:01:01]} 35. Qd3 {[%clk 0:02:08]}  h5 {[%clk 0:00:59]} 36. c4 {[%clk 0:02:08]}  Rc7 {[%clk 0:00:56]} 37. b6 {[%clk 0:02:07]}  Rg7 {[%clk 0:00:54]} 38. c5 {[%clk 0:02:07]}  Ne7 {[%clk 0:00:53]} 39. Qe4 {[%clk 0:02:00]}  Nc6 {[%clk 0:00:53]} 40. g4 {[%clk 0:02:00]}  hxg4 {[%clk 0:00:51]} 41. Qxg4 {[%clk 0:02:01]}  Rf7 {[%clk 0:00:51]} 42. Qe6 {[%clk 0:02:00]}  Kg7 {[%clk 0:00:50]} 43. Kg2 {[%clk 0:01:58]}  Rf6 {[%clk 0:00:50]} 44. Qd7+ {[%clk 0:01:55]}  Rf7 {[%clk 0:00:50]} 45. Qc8 {[%clk 0:01:55]}  Re7 {[%clk 0:00:49]} 46. f4 {[%clk 0:01:55]}  Rf7 {[%clk 0:00:45]} 47. Kf3 {[%clk 0:01:54]}  Re7 {[%clk 0:00:33]} 48. Kg4 {[%clk 0:01:51]}  Rf7 {[%clk 0:00:33]} 49. Qa8 {[%clk 0:01:48]}  Kh7 {[%clk 0:00:32]} 50. Qa2 {[%clk 0:01:44]}  Kg7 {[%clk 0:00:32]} 51. Qe6 {[%clk 0:01:42]}  Rf6 {[%clk 0:00:29]} 52. Qe8 {[%clk 0:01:40]}  Rf7 {[%clk 0:00:29]} 53. Kg5 {[%clk 0:01:35]}  Rf5+ {[%clk 0:00:29]} 54. Kg4 {[%clk 0:01:36]}  Rf7 {[%clk 0:00:30]} 55. Qe1 {[%clk 0:01:35]}  Rf5 {[%clk 0:00:29]} 56. Qa1+ {[%clk 0:01:29]}  Kh7 {[%clk 0:00:25]} 57. Qa2 {[%clk 0:01:27]}  Rf6 {[%clk 0:00:16]} 58. Qd5 {[%clk 0:01:23]}  Kg7 {[%clk 0:00:16]} 59. Qd1 {[%clk 0:01:09]}  Rf7 {[%clk 0:00:16]} 60. Qa4 {[%clk 0:01:06]}  Kh7 {[%clk 0:00:12]} 61. Qa8 {[%clk 0:01:06]}  Kg7 {[%clk 0:00:12]} 62. f5 {[%clk 0:01:05]}  gxf5+ {[%clk 0:00:09]} 63. Kf4 {[%clk 0:01:03]}  Kh7 {[%clk 0:00:04]} 64. Qa1 {[%clk 0:01:01]}  Kg6 {[%clk 0:00:02]} 65. Qg1+ {[%clk 0:01:01]}  Kf6 {[%clk 0:00:02]} 66. Qg5+ {[%clk 0:01:01]}  Ke6 {[%clk 0:00:03]} 67. Qg6+ {[%clk 0:01:00]}  Ke7 {[%clk 0:00:03]} 68. Qd6+ {[%clk 0:00:56]}  Ke8 {[%clk 0:00:04]} 69. Qe6+ {[%clk 0:00:54]}  Kf8 {[%clk 0:00:04]} 70. Kg5 {[%clk 0:00:52]}  f4 {[%clk 0:00:02]} 71. Kg6 {[%clk 0:00:47]}  Rg7+ {[%clk 0:00:02]} 72. Kf6 {[%clk 0:00:45]}  Ne7 {[%clk 0:00:01]} 73. Qe4 {[%clk 0:00:30]}  Rf7+ {[%clk 0:00:01]} 74. Ke6 {[%clk 0:00:28]}  f3 {[%clk 0:00:02]} 75. Qxb7 {[%clk 0:00:15]}  f2 {[%clk 0:00:02]} 76. Qb8+ {[%clk 0:00:15]}  Kg7 {[%clk 0:00:01]} 77. Qe5+ {[%clk 0:00:15]}  Kf8 {[%clk 0:00:01]} 78. b7 {[%clk 0:00:14]} 1-0


[Site "https://www.chess.com"]